bitfinex/quotes_ETHUSD_20250626
["timestamp","ask_amount","ask_price","bid_price","bid_amount"]
[1750951358088,1.39206274,2444.5,2443.7,7.4942]
[1750951358383,1.39206274,2444.5,2444.1,4.09147314]
[1750951358384,0.204,2444.3,2444.1,4.09147314]
[1750951358989,0.204,2444.3,2443.9,4.09181098]
[1750951359188,0.204,2444.3,2443.8,4.29590486]
[1750951359389,0.204,2444.3,2443.9,4.09181653]
[1750951360159,1.3813,2444.2,2443.8,6.938]
[1750951360394,0.204,2444.0,2443.5,4.29638128]
[1750951360590,0.7944,2443.9,2443.3,4.09273197]
[1750951360791,0.7944,2443.9,2443.3,6.734]
[1750951360792,0.204,2443.6,2443.3,6.734]
[1750951362595,0.204,2443.6,2443.3,10.82682525]
[1750951363175,0.204,2443.6,2443.3,6.734]
[1750951363890,0.8258,2443.5,2443.2,8.701]
[1750951364094,0.8258,2443.5,2443.2,4.29689718]
[1750951364389,0.8258,2443.5,2443.2,11.02989718]
[1750951364890,0.8258,2443.5,2443.3,4.09278734]
[1750951365191,0.8258,2443.5,2443.3,4.09274863]
[1750951365497,0.8258,2443.5,2443.2,11.02990445]
[1750951366091,0.8258,2443.5,2443.3,4.09279718]
[1750951366289,0.204,2443.6,2443.2,6.937]
[1750951366490,0.204,2443.8,2443.4,4.09258657]
[1750951366694,0.204,2443.8,2443.3,4.29675562]
[1750951367481,0.204,2443.8,2443.4,4.09265423]
[1750951367683,0.7628,2444.3,2443.6,4.09220101]
[1750951367888,0.204,2444.0,2443.7,4.09200469]
[1750951368099,0.204,2444.0,2443.8,4.09192781]
[1750951368596,0.204,2444.0,2443.9,4.09182045]
[1750951368765,0.204,2444.0,2443.7,4.09209508]
[1750951368766,0.204,2444.0,2443.6,10.82528597]
[1750951368963,0.204,2444.0,2443.7,4.09214247]
[1750951369308,0.204,2444.0,2443.9,4.09182045]
[1750951369514,0.9668,2444.3,2443.8,4.2958578]
[1750951369812,0.9668,2444.3,2443.9,4.09179824]
[1750951370167,0.9668,2444.3,2444.0,4.09154139]
[1750951370673,0.204,2444.3,2444.1,4.09140123]
[1750951370877,0.204,2444.4,2444.1,4.09140123]
[1750951371272,0.204,2444.4,2444.0,4.2955667]
[1750951371473,0.204,2444.4,2444.0,5.21224004]
[1750951372597,0.204,2444.4,2444.1,4.09146605]
[1750951372912,0.204,2444.4,2444.1,10.82340344]
[1750951373604,0.204,2444.4,2444.1,6.732]
[1750951375388,0.204,2444.4,2444.1,10.82344136]
[1750951376703,0.204,2444.4,2444.1,6.732]
[1750951376883,0.204,2444.4,2444.3,4.09115084]
[1750951377381,0.8009,2444.7,2444.5,4.09080482]
[1750951377572,0.204,2444.7,2444.3,0.204]
[1750951377772,0.204,2444.7,2444.4,4.09096505]
[1750951378201,0.204,2444.7,2444.3,4.29506375]
[1750951378676,1.0184,2444.7,2444.3,11.02706375]
[1750951379505,1.0184,2444.7,2444.3,6.936]
[1750951380020,1.0184,2444.7,2444.3,0.204]
[1750951380202,1.0184,2444.7,2444.3,11.02713992]
[1750951380407,1.0184,2444.7,2444.4,4.0909042]
[1750951380906,1.0184,2444.7,2444.3,6.936]
[1750951381081,0.55,2445.2,2444.3,6.936]
[1750951381082,0.7885,2445.0,2444.7,4.09038783]
[1750951381284,0.7885,2445.0,2444.7,4.09038874]
[1750951381485,0.204,2445.1,2444.8,4.09030686]
[1750951381888,0.97401251,2445.2,2445.0,4.08989807]
[1750951382090,0.7885,2445.3,2445.0,4.08996981]
[1750951382295,0.204,2445.4,2445.1,6.731]
[1750951382530,0.7548,2445.7,2445.1,6.731]
[1750951382721,0.204,2445.8,2445.5,4.08903639]
[1750951383086,0.204,2445.8,2445.5,4.08905248]
[1750951383291,0.204,2445.8,2445.4,4.08922863]
[1750951384233,0.204,2445.8,2445.4,4.81402682]
[1750951384516,11.72881251,2445.9,2445.5,6.73]
[1750951384517,1.72881251,2445.9,2445.5,6.73]
[1750951384810,0.9588,2445.9,2445.7,4.08878572]
[1750951385036,0.204,2445.9,2445.6,4.08888773]
[1750951385217,0.204,2445.9,2445.7,0.6731]
[1750951385614,0.204,2445.9,2445.5,0.204]
[1750951385807,0.7548,2446.2,2445.5,6.73]
[1750951386004,0.204,2445.8,2445.5,10.81911686]
[1750951386516,0.204,2445.8,2445.5,6.73]
[1750951387088,0.8194,2445.7,2445.5,6.73]
[1750951389229,0.8194,2445.7,2445.0,0.8277]
[1750951389428,0.204,2445.5,2445.1,6.933]
[1750951390328,0.55,2445.4,2444.7,6.728]
[1750951390534,0.204,2445.0,2444.7,6.728]
[1750951390854,0.204,2445.0,2444.6,6.05663206]
[1750951391200,0.204,2445.0,2444.6,6.05664122]
[1750951391400,0.204,2445.0,2444.8,4.09029988]
[1750951392135,0.204,2445.0,2444.7,4.09040393]
[1750951392341,0.204,2445.0,2444.6,6.05656761]
[1750951392564,0.204,2445.0,2444.7,4.0904446]
[1750951392703,0.204,2445.0,2444.8,4.09022097]
[1750951393044,0.204,2445.0,2444.7,4.69605355]
[1750951393907,0.204,2445.0,2444.8,4.09015754]
[1750951394107,0.7679,2445.3,2445.0,4.08981273]
[1750951394309,0.7679,2445.3,2444.9,0.204]
[1750951394738,0.7679,2445.3,2444.9,4.29414445]
[1750951395442,0.7679,2445.3,2444.9,4.29413014]
[1750951396047,0.7679,2445.3,2445.0,4.08997663]
[1750951396469,10.55,2445.8,2444.9,4.29414474]
[1750951396470,0.7679,2445.5,2445.1,4.08968965]
[1750951396766,0.9719,2445.5,2445.0,4.29385644]
[1750951396972,0.7958,2445.4,2445.0,4.29385644]
[1750951397132,0.7958,2445.4,2444.9,6.728]
[1750951397331,0.204,2445.2,2444.9,6.728]
[1750951397960,0.55,2445.3,2444.7,6.728]
[1750951398139,0.204,2445.0,2444.7,6.728]
[1750951398527,0.204,2445.0,2444.7,10.81839764]
[1750951398735,0.7958,2445.4,2444.8,4.09024408]
[1750951398964,0.204,2445.2,2444.7,11.02244717]
[1750951399364,0.7958,2445.1,2444.7,6.932]
[1750951399859,0.55,2445.0,2444.5,1.762]
[1750951400080,0.204,2444.8,2444.5,1.762]
[1750951400265,0.7958,2444.7,2444.5,1.762]
[1750951401038,0.7958,2445.1,2444.7,4.09036235]
[1750951401232,0.9998,2445.1,2444.6,0.204]
[1750951401433,0.9998,2445.1,2444.8,4.09020762]
[1750951401633,0.9998,2445.1,2444.8,4.92867306]
[1750951401835,0.8237,2445.4,2445.1,4.08973931]
[1750951402254,0.8237,2445.4,2445.0,4.29389137]
[1750951402661,0.8237,2445.4,2445.0,4.29392965]
[1750951402868,0.8237,2445.4,2445.0,4.29388948]
[1750951404761,0.8237,2445.4,2445.1,4.08981153]
[1750951405676,0.8237,2445.4,2444.8,7.56546544]
[1750951405878,0.204,2445.2,2444.8,6.931]
[1750951406373,0.204,2445.0,2444.8,10.8173015]
[1750951406876,0.8242,2445.1,2444.5,8.489]
[1750951407071,0.204,2444.9,2444.5,8.489]
[1750951407239,0.204,2444.9,2444.4,4.2948558]
[1750951407586,0.204,2444.9,2444.5,4.09081306]
[1750951408270,0.204,2444.9,2444.8,4.09031413]
[1750951408434,1.0282,2445.1,2445.0,4.08997955]
[1750951408638,0.7694,2445.7,2444.9,4.09005191]
[1750951408880,0.204,2445.3,2444.9,4.09005191]
[1750951409064,0.204,2445.3,2445.1,4.08978348]
[1750951409270,0.204,2445.3,2445.0,6.727]
[1750951409442,0.7694,2445.7,2445.0,10.81693042]
[1750951409643,0.204,2445.5,2445.2,4.08964501]
[1750951409850,0.204,2445.5,2445.1,4.29372194]
[1750951410482,0.204,2445.5,2445.3,4.0894643]
[1750951410644,0.204,2445.5,2445.2,4.08956884]
[1750951411068,0.7694,2445.7,2445.4,4.08931054]
[1750951411268,0.7694,2445.7,2445.4,4.29331054]
[1750951412555,0.7694,2445.7,2445.4,0.204]
[1750951412873,0.204,2445.5,2445.1,1.966]
[1750951413056,0.8218,2445.9,2445.5,4.08902596]
[1750951413262,0.8218,2445.9,2445.6,4.08886679]
[1750951414042,0.8218,2445.9,2445.5,4.29313294]
[1750951414685,0.8218,2445.9,2445.5,0.204]
[1750951415243,0.55,2445.8,2445.3,6.727]
[1750951415442,0.204,2445.6,2445.3,6.727]
[1750951415741,0.204,2445.6,2445.3,10.81639288]
[1750951416148,0.204,2445.6,2445.3,6.727]
[1750951417780,0.204,2445.6,2445.3,10.81643915]
[1750951418076,0.204,2445.6,2445.3,6.727]
[1750951419077,0.204,2445.6,2444.8,10.8295]
[1750951419078,0.7837,2445.2,2444.8,0.204]
[1750951419291,0.204,2445.0,2444.4,5.85282944]
[1750951419581,1.3337,2445.2,2444.4,5.00929414]
[1750951419582,0.204,2444.8,2444.4,5.00929414]
[1750951419873,0.204,2444.8,2444.6,4.09061499]
[1750951420372,0.204,2444.8,2444.4,5.00935787]
[1750951420577,0.204,2444.8,2444.5,4.09081611]
[1750951420776,0.204,2444.8,2444.4,0.91842867]
[1750951420777,0.204,2444.8,2444.6,4.09055552]
[1750951421163,0.204,2444.8,2444.5,4.09074729]
[1750951421673,0.204,2444.8,2444.5,4.77421681]
[1750951421982,0.204,2444.8,2444.5,0.68346952]
[1750951422175,0.204,2444.8,2444.4,0.204]
[1750951422560,0.204,2444.8,2444.5,4.0908051]
[1750951422761,0.204,2444.8,2444.4,4.29485347]
[1750951423156,0.55,2444.8,2444.2,4.55628606]
[1750951423362,0.204,2444.6,2444.2,11.48628606]
[1750951424185,0.204,2444.6,2444.2,4.76028606]
[1750951424492,0.204,2444.6,2444.3,10.0]
[1750951424848,0.204,2444.6,2444.4,4.09089567]
[1750951425806,0.204,2444.6,2444.3,4.0911259]
[1750951425807,0.204,2444.6,2444.5,4.09081611]
[1750951427354,0.204,2444.6,2444.4,4.09090927]
[1750951428084,0.204,2444.6,2444.5,4.09081611]
[1750951428649,0.204,2444.6,2444.5,4.90901143]
[1750951428853,2.312,2445.2,2444.5,4.90901143]
[1750951428854,0.7903,2445.2,2444.5,1.78339532]
[1750951429062,0.204,2445.1,2444.6,10.8165764]
[1750951429297,0.204,2445.1,2444.7,4.29445148]
[1750951429784,0.204,2445.1,2444.8,4.09027432]
[1750951430155,0.204,2445.1,2444.7,0.204]
[1750951430792,0.204,2445.1,2444.7,4.29442328]
[1750951430991,0.204,2445.1,2444.7,0.204]
[1750951432571,0.204,2445.1,2444.7,4.29439665]
[1750951434592,0.204,2445.1,2444.7,0.204]
[1750951437471,0.55,2445.0,2444.7,0.204]
[1750951437713,0.754,2444.8,2444.4,0.204]
[1750951437993,0.7716,2444.5,2444.2,0.204]
[1750951438165,0.7716,2444.5,2443.8,10.81790399]
[1750951438365,0.204,2444.4,2444.0,0.204]
[1750951439392,0.204,2444.4,2444.0,4.29563193]
[1750951439703,0.204,2444.4,2444.0,0.204]
[1750951440799,1.762,2445.2,2444.0,0.204]
[1750951440800,0.7716,2444.9,2444.5,4.09080834]
[1750951441128,0.204,2445.0,2444.7,4.09039408]
[1750951441269,0.7716,2445.3,2444.9,4.09002673]
[1750951441469,4.79219099,2446.2,2445.1,4.29380438]
[1750951441470,1.0254,2445.6,2445.1,4.29380438]
[1750951441699,1.0254,2445.6,2445.1,0.204]
[1750951442975,0.754,2445.2,2444.4,7.5169]
[1750951443277,0.204,2445.0,2444.6,0.204]
[1750951444512,0.7825,2445.1,2444.4,6.726]
[1750951444712,0.204,2444.9,2444.4,6.93]
[1750951445233,0.204,2444.9,2444.4,11.02096599]
[1750951445511,0.204,2444.9,2444.5,4.09079224]
[1750951446404,0.204,2444.9,2444.4,6.93]
[1750951446607,0.204,2444.9,2444.4,11.02094692]
[1750951446783,0.204,2444.9,2444.5,4.09075653]
[1750951446984,0.204,2444.9,2444.5,4.09081611]
[1750951447316,0.7825,2445.1,2444.7,0.204]
[1750951448997,0.7825,2445.1,2444.8,4.09021363]
[1750951449721,0.7825,2445.1,2444.7,5.04801115]
[1750951449879,0.204,2445.2,2444.8,4.09020957]
[1750951451290,0.204,2445.2,2444.9,4.09004682]
[1750951451504,0.204,2445.2,2444.7,1.46240112]
[1750951451812,0.8292,2445.3,2445.0,0.204]
[1750951452182,0.8292,2445.7,2445.2,0.204]
[1750951452377,0.8292,2445.9,2445.2,0.204]
[1750951452721,1.80713992,2445.9,2445.5,4.29312634]
[1750951453010,0.8292,2445.9,2445.5,5.13137894]
[1750951453209,0.8292,2445.9,2445.5,0.204]
[1750951453914,0.8292,2445.9,2445.5,4.29314056]
[1750951454110,0.8292,2445.9,2445.5,0.204]
[1750951454687,0.8292,2445.9,2445.3,6.724]
[1750951455020,0.55,2445.5,2444.8,6.724]
[1750951455202,0.8223,2445.2,2444.8,6.928]
[1750951455381,0.8223,2445.2,2444.8,11.01830055]
[1750951455583,0.8223,2445.2,2444.8,6.928]
[1750951456388,0.8223,2445.2,2444.8,11.01827933]
[1750951457102,0.8223,2445.2,2444.8,6.928]
[1750951457517,0.8223,2445.2,2444.8,11.01830968]
[1750951457733,0.8263,2445.5,2444.8,6.724]
[1750951457900,1.0303,2445.5,2445.0,0.204]
[1750951458091,1.0303,2445.5,2445.0,4.2939638]
[1750951458651,1.0303,2445.5,2445.1,4.08978646]
[1750951458925,1.0303,2445.5,2445.2,4.08953082]
[1750951459122,1.0303,2445.5,2445.1,4.08973013]
[1750951460432,1.0194,2445.7,2445.2,0.204]
[1750951460589,1.0194,2445.7,2445.3,4.08938444]
[1750951460790,1.0194,2445.7,2445.2,0.204]
[1750951461225,0.754,2445.4,2445.0,0.204]
[1750951461411,0.204,2445.2,2444.8,4.2941526]
[1750951461597,0.204,2445.2,2444.8,4.29423488]
[1750951462105,0.204,2445.2,2444.8,0.204]
[1750951462305,0.204,2445.2,2444.8,4.29430854]
[1750951463834,0.204,2445.2,2444.9,4.09012642]
[1750951464745,0.8154,2445.3,2445.0,4.08988891]
[1750951466113,0.8154,2445.3,2444.9,0.204]
[1750951466114,0.8154,2445.3,2444.9,4.29408331]
[1750951466311,0.55,2445.6,2444.2,0.7523]
[1750951466546,0.204,2445.0,2444.5,4.29478901]
[1750951466745,0.204,2445.0,2444.6,4.09057791]
[1750951467339,0.204,2445.0,2444.5,4.29473075]
[1750951468434,0.204,2445.0,2444.5,0.204]
[1750951468634,0.204,2445.0,2444.5,4.29473353]
[1750951468841,0.204,2445.0,2444.6,4.0906349]
[1750951469037,0.204,2445.0,2444.6,0.83855453]
[1750951469234,0.7595,2445.1,2444.8,4.09030717]
[1750951469436,0.9635,2445.1,2444.8,4.09030717]
[1750951470751,0.7595,2445.1,2444.8,4.09030717]
[1750951470943,0.7595,2445.1,2444.8,4.29430717]
[1750951471137,0.7595,2445.1,2444.8,4.85365083]
[1750951472347,0.7943,2445.4,2445.0,4.08987308]
[1750951472553,0.7943,2445.4,2445.0,4.29387308]
[1750951473251,0.7943,2445.4,2445.1,4.08980498]
[1750951473758,0.7943,2445.4,2445.0,4.29396549]
[1750951474514,0.7943,2445.4,2445.1,4.08977797]
[1750951474719,0.7943,2445.4,2445.0,0.204]
[1750951474952,10.9777815,2445.7,2444.6,0.7899]
[1750951474953,0.55,2445.3,2444.6,10.81360526]
[1750951475151,0.204,2445.1,2444.6,6.927]
[1750951475353,0.7541,2445.0,2444.6,0.204]
[1750951475862,0.7541,2445.0,2444.3,1.759]
[1750951476060,0.204,2444.8,2444.3,1.963]
[1750951476228,0.7797,2444.7,2444.3,1.963]
[1750951476542,0.7797,2444.7,2444.3,1.759]
[1750951476744,0.204,2444.6,2444.3,1.759]
[1750951477132,0.7797,2444.7,2444.4,0.204]
[1750951477544,0.7797,2444.7,2444.4,4.29494971]
[1750951478742,0.7797,2444.7,2444.5,4.09068647]
[1750951478954,0.204,2444.8,2444.5,4.09068647]
[1750951479161,0.7685,2444.9,2444.5,4.09071233]
[1750951479348,0.7685,2444.9,2444.6,0.204]
[1750951481872,0.7685,2445.3,2444.9,4.29405446]
[1750951482034,0.7685,2445.3,2444.9,0.204]
[1750951482235,0.7685,2445.3,2444.9,4.29408484]
[1750951482436,0.204,2445.4,2445.0,4.089883]
[1750951482737,0.7685,2445.5,2445.2,0.204]
[1750951482937,0.7685,2445.5,2445.2,4.29358609]
[1750951483158,0.204,2445.6,2445.2,4.29358609]
[1750951483331,0.204,2445.6,2445.2,0.204]
[1750951484469,1.18191425,2445.6,2445.2,0.204]
[1750951485768,0.204,2445.6,2445.2,0.204]
[1750951486472,1.18191425,2445.6,2445.2,0.204]
[1750951487092,0.204,2445.2,2444.8,0.204]
[1750951487252,0.7773,2445.1,2444.8,0.204]
[1750951487451,0.204,2445.0,2444.6,11.01657601]
[1750951487666,0.204,2445.0,2444.6,6.926]
[1750951488160,0.204,2445.0,2444.6,11.01664288]
[1750951488366,0.204,2445.0,2444.6,6.926]
[1750951490078,0.204,2445.0,2444.6,11.01664062]
[1750951490669,0.204,2445.0,2444.6,6.926]
[1750951491766,0.204,2445.0,2444.6,11.0164816]
[1750951491971,0.204,2445.0,2444.7,4.0904728]
[1750951492650,0.7773,2445.1,2444.7,4.0904728]
[1750951492850,0.7773,2445.1,2444.7,4.29448144]
[1750951493092,0.204,2445.2,2444.8,0.7814]
[1750951493271,0.204,2445.2,2444.8,4.87170253]
[1750951493784,0.204,2445.2,2444.9,4.09012374]
[1750951494003,0.204,2445.3,2445.0,6.722]
[1750951494166,0.204,2445.5,2445.1,4.29366126]
[1750951494370,0.204,2445.5,2445.2,4.08961943]
[1750951494972,0.204,2445.5,2445.3,4.08946197]
[1750951495172,0.204,2445.5,2445.2,4.08955255]
[1750951495494,1.97001425,2445.8,2445.4,4.08921935]
[1750951495697,0.7881,2445.8,2445.5,4.08913149]
[1750951495992,0.7881,2445.8,2445.4,11.01522035]
[1750951496488,0.7881,2445.8,2445.5,4.08909468]
[1750951496695,0.7881,2445.8,2445.4,11.0152165]
[1750951497082,0.7881,2445.8,2445.5,4.08911421]
[1750951497823,0.97791425,2446.1,2446.0,4.08830744]
[1750951497958,0.9571,2446.4,2446.0,10.80930744]
[1750951498158,0.97791425,2446.3,2446.1,4.08810085]
[1750951498359,1.78211425,2446.7,2446.2,4.08785737]
[1750951498566,0.204,2446.5,2446.2,0.204]
[1750951498789,0.97791425,2446.4,2446.2,0.204]
[1750951499188,0.204,2446.5,2446.2,0.204]
[1750951500558,0.8114,2446.4,2446.0,6.721]
[1750951500762,0.8114,2446.4,2445.9,0.204]
[1750951500962,0.204,2446.3,2445.9,6.925]
[1750951501192,0.204,2446.3,2445.9,11.01347356]
[1750951501585,0.204,2446.3,2445.9,6.925]
[1750951502790,0.204,2446.3,2446.0,6.72]
[1750951503195,0.8114,2446.4,2446.0,6.72]
[1750951503358,1.0154,2446.4,2446.0,6.72]
[1750951503564,1.0154,2446.4,2446.0,10.80830264]
[1750951504195,1.0154,2446.4,2446.0,6.72]
[1750951510802,0.204,2446.3,2446.0,6.719]
[1750951512203,0.55,2446.2,2445.3,4.08945344]
[1750951512402,0.7992,2445.8,2445.4,0.204]
[1750951512713,0.7992,2445.8,2445.4,4.29322491]
[1750951512872,0.204,2445.9,2445.5,4.08906268]
[1750951514623,0.204,2445.9,2445.6,4.92085101]
[1750951514775,0.204,2445.9,2445.7,11.707786]
[1750951515514,0.8126,2446.3,2445.7,7.61899137]
[1750951515702,0.204,2446.2,2445.7,7.82299137]
[1750951516001,0.204,2446.2,2445.7,11.91179316]
[1750951516210,0.204,2446.2,2445.7,7.82299137]
[1750951517125,0.204,2446.2,2445.7,6.922]
[1750951517277,0.204,2446.0,2445.7,6.718]
[1750951517691,0.8254,2445.9,2445.6,1.758]
[1750951520124,0.8254,2445.9,2445.5,0.204]
[1750951520280,0.204,2445.7,2445.2,6.922]
[1750951520516,0.7863,2445.6,2445.2,6.922]
[1750951521153,0.7863,2445.6,2445.2,11.01153115]
[1750951521352,0.7863,2445.6,2445.2,6.922]
[1750951522232,0.7863,2445.6,2445.2,0.204]
[1750951522429,0.7863,2445.6,2445.2,7.52717624]
[1750951522747,0.7863,2445.6,2445.2,11.61680954]
[1750951523571,0.7863,2445.6,2445.2,7.52717624]
[1750951523775,1.8084395,2446.1,2445.3,4.86883474]
[1750951524062,0.204,2446.1,2445.6,4.08897612]
[1750951524365,0.8311,2446.3,2445.8,4.08853283]
[1750951524676,1.0351,2446.3,2445.8,0.204]
[1750951524954,1.0351,2446.3,2445.8,4.29263157]
[1750951526667,1.0351,2446.3,2445.8,0.204]
[1750951527143,0.8311,2446.3,2446.0,4.08829501]
[1750951527462,0.8311,2446.3,2446.1,4.08813608]
[1750951527632,0.8311,2446.3,2446.0,4.08825796]
[1750951528557,0.204,2446.4,2445.9,0.204]
[1750951528868,0.204,2446.4,2446.0,4.08830744]
[1750951529034,0.204,2446.4,2445.9,4.29238194]
[1750951529364,0.204,2446.4,2445.9,4.70127955]
[1750951529565,0.204,2446.4,2446.0,4.08830179]
[1750951529868,0.204,2446.4,2446.1,4.08809969]
[1750951530070,0.204,2446.4,2445.9,4.70132507]
[1750951530360,0.204,2446.4,2446.0,4.08814532]
[1750951530570,0.7773,2446.5,2446.3,4.08780594]
[1750951531336,0.9735,2446.7,2446.3,4.08780594]
[1750951532482,0.9735,2446.7,2446.2,0.204]
[1750951532636,0.7695,2446.7,2446.3,4.08780607]
[1750951532840,0.7695,2446.7,2446.1,7.5015]
[1750951532841,0.204,2446.8,2446.4,0.204]
[1750951533066,0.204,2446.8,2446.4,4.29162594]
[1750951533871,0.204,2446.8,2446.4,0.204]
[1750951534369,0.204,2446.8,2446.4,4.2916254]
[1750951534569,0.204,2446.8,2446.5,4.08742306]
[1750951534766,0.204,2446.8,2446.6,4.08720633]
[1750951534971,0.8244,2446.9,2446.6,4.08720633]
[1750951535159,0.204,2447.0,2446.6,0.7655]
[1750951535358,0.204,2447.0,2446.6,4.85278144]
[1750951535567,0.204,2447.0,2446.6,5.84178202]
[1750951535766,0.204,2447.0,2446.9,4.08680371]
[1750951535951,0.8244,2447.2,2447.0,4.08661956]
[1750951536157,0.8244,2447.2,2446.9,11.00674058]
[1750951536359,0.8244,2447.2,2446.9,11.41563819]
[1750951536952,0.204,2447.3,2446.9,11.41563819]
[1750951537958,0.204,2447.3,2446.9,11.4156981]
[1750951538559,0.204,2447.3,2446.9,7.32889761]
[1750951538778,0.204,2447.3,2447.0,0.98900058]
[1750951539079,0.204,2447.3,2447.1,4.0864623]
[1750951539280,0.204,2447.3,2447.0,0.98900058]
[1750951539871,0.204,2447.3,2447.1,4.08643976]
[1750951540081,0.79,2447.4,2447.2,0.204]
[1750951540773,0.994,2447.4,2447.0,1.19300058]
[1750951541282,0.79,2447.4,2446.4,10.8088]
[1750951541503,0.79,2447.4,2446.2,6.714]
[1750951541504,0.8258,2447.0,2446.2,6.714]
[1750951541663,1.0081,2446.8,2446.5,0.204]
[1750951542004,0.55,2447.1,2445.8,4.0885095]
[1750951542005,0.8041,2446.5,2445.8,4.0885095]
[1750951542180,1.0081,2446.5,2446.0,0.204]
[1750951543059,1.0081,2446.5,2446.0,4.29230482]
[1750951543684,1.0081,2446.5,2446.1,4.08811883]
[1750951543851,1.0081,2446.5,2446.2,0.42921188]
[1750951544553,1.0081,2446.5,2446.0,4.29222857]
[1750951547212,1.0081,2446.5,2446.0,0.204]
[1750951547413,0.55,2446.4,2445.9,6.714]
[1750951547578,0.204,2446.3,2445.9,6.714]
[1750951550015,0.204,2446.3,2445.9,10.80241114]
[1750951550387,0.204,2446.3,2445.9,6.714]
[1750951551886,0.204,2446.3,2445.9,10.80237684]
[1750951553024,0.204,2446.3,2446.0,4.08819743]
[1750951553198,0.204,2446.4,2446.0,4.29219743]
[1750951553519,0.8041,2446.5,2446.1,4.2920707]
[1750951554731,0.8041,2446.5,2446.1,0.204]
[1750951554898,0.8041,2446.5,2445.9,6.714]
[1750951555095,0.204,2446.3,2445.9,11.00645826]
[1750951555318,0.204,2446.3,2445.9,11.00639106]
[1750951556228,0.204,2446.3,2445.9,0.204]
[1750951556536,0.7511,2446.2,2445.5,6.713]
[1750951556700,0.204,2446.0,2445.5,11.00612627]
[1750951557028,0.204,2446.0,2445.5,6.917]
[1750951559229,1.3449,2445.9,2445.0,0.7782]
[1750951559535,0.7949,2445.7,2445.3,0.204]
[1750951560333,0.7949,2445.7,2445.3,4.29342772]
[1750951561343,0.204,2445.8,2445.4,4.08914818]
[1750951561934,0.8094,2445.9,2445.4,4.08923794]
[1750951562134,0.8094,2445.9,2445.6,0.204]
[1750951563945,1.756,2446.4,2445.2,0.204]
[1750951563946,0.204,2445.7,2445.2,0.204]
[1750951564248,0.204,2445.7,2445.2,6.918]
[1750951564441,0.204,2445.7,2445.2,0.204]
[1750951564637,2.73135336,2446.4,2445.1,1.755]
[1750951564638,0.204,2445.4,2445.1,1.755]
[1750951565653,0.204,2445.8,2445.4,4.08915058]
[1750951565839,0.204,2445.9,2445.4,4.08915058]
[1750951566155,0.204,2445.9,2445.5,4.29311271]
[1750951566353,0.204,2445.9,2445.5,0.204]
[1750951566535,0.204,2445.9,2445.5,1.04226852]
[1750951566854,0.7954,2445.8,2445.5,1.04226852]
[1750951568253,0.7954,2445.8,2445.1,1.755]
[1750951568457,0.7726,2445.5,2445.1,8.673]
[1750951568956,0.7726,2445.5,2445.1,0.204]
[1750951570147,0.7726,2445.5,2444.9,6.713]
[1750951570349,0.7726,2445.5,2445.0,0.204]
[1750951570350,0.204,2445.4,2445.0,0.204]
[1750951571860,0.204,2445.4,2444.9,6.713]
[1750951571861,0.204,2445.3,2444.9,6.917]
[1750951572354,0.204,2445.3,2444.9,0.204]
[1750951572662,0.204,2445.3,2444.8,12.55819366]
[1750951572663,0.7604,2445.2,2444.8,1.755]
[1750951572872,0.9644,2445.2,2444.8,8.468]
[1750951573635,0.9644,2445.2,2444.8,1.755]
[1750951576758,0.204,2445.0,2444.8,1.755]
[1750951576964,0.8017,2444.9,2444.1,4.86609165]
[1750951577271,0.204,2444.8,2444.3,6.05013348]
[1750951577449,0.204,2444.8,2444.3,1.959]
[1750951577764,0.204,2444.8,2444.4,4.86560525]
[1750951578275,0.204,2444.8,2444.5,4.09079819]
[1750951578784,0.8017,2445.2,2444.7,4.09034679]
[1750951578956,0.204,2445.1,2444.7,4.29440459]
[1750951579362,0.204,2445.1,2444.8,4.09029643]
[1750951579976,0.204,2445.1,2444.8,4.09020652]
[1750951580164,0.204,2445.1,2444.9,4.0901016]
[1750951580755,0.8151,2445.4,2445.0,4.08997955]
[1750951581058,0.204,2445.3,2445.2,4.08964501]
[1750951581254,0.8,2445.6,2445.4,4.08920315]
[1750951581563,1.004,2445.6,2445.2,0.81795842]
[1750951581773,0.8,2445.6,2445.2,0.81795842]
[1750951582085,0.204,2445.5,2445.2,0.81795842]
[1750951582384,0.204,2445.5,2445.2,4.90754983]
[1750951582571,0.204,2445.5,2445.2,0.81795842]
[1750951582777,0.204,2445.5,2445.3,0.51116816]
[1750951583085,0.204,2445.5,2445.1,0.204]
[1750951583652,0.204,2445.5,2445.1,4.29380619]
[1750951584298,0.204,2445.5,2445.1,4.29379902]
[1750951585392,0.204,2445.5,2445.1,0.204]
[1750951585686,0.7975,2445.4,2444.7,14.09037438]
[1750951585893,0.204,2445.3,2444.9,12.76212539]
[1750951586390,0.204,2445.3,2444.9,8.672]
[1750951586686,0.204,2445.1,2444.9,8.468]
[1750951587392,0.204,2445.1,2444.6,0.204]
[1750951587589,0.8242,2445.0,2444.6,11.43708347]
[1750951587969,0.8242,2445.0,2444.6,7.34647904]
[1750951588280,0.8242,2445.0,2444.7,4.09038077]
[1750951588481,0.204,2445.1,2444.9,4.09014683]
[1750951588662,0.204,2445.1,2444.8,4.09023473]